Cogmind - Beta 13 @@@ ROGUE MODE // 2024.04.25 @ 17:18:03 Player: opdo Result: Self-destructed Performance ------------- Evolutions (2) 1000 Regions Visited (8) 1600 Robots Destroyed (33) 165 Value Destroyed (872) 872 Prototype IDs (24) 480 Alien Tech Used (0) 0 Bonus (401) 401 TOTAL SCORE: 4518 Bonus ------- Follower Combat Kills 101 Aligned with FarCom 300 Cogmind --------- Core Integrity 403/550 Matter 300/300 Energy 100/100 System Corruption 0% Temperature Cool (0) Movement Hovering (110) Ox1 Location -8/Storage Parts ------- > --- POWER (2) -------- (None) > --- PROPULSION (3) --- Aerolev Unit > --- UTILITY (4) ------ Small Storage Unit Improved Terrain Scan Processor > --- WEAPON (2) ------- Heavy Mace Katana > --- INVENTORY (8) ---- Titanium Leg Terrain Scan Processor Advanced Targeting Computer Cloak of Protection Power Shielding Heavy Assault Rifle Autogun Improved Assault Rifle Peak State ------------ > --- POWER ------------ Deuterium Engine Light Nuclear Core > --- PROPULSION ------- Titanium Leg VSS Leg Wheel > --- UTILITY ---------- Small Storage Unit Improved Terrain Scanner Improved Terrain Scan Processor Hardened Medium Armor Plating > --- WEAPON ----------- Heavy Mace Katana > --- INVENTORY -------- Airjet Terrain Scan Processor Advanced Targeting Computer Cloak of Protection Power Shielding Light Assault Rifle Light Assault Rifle Autogun [Rating: 31] Favorites ----------- Power Ion Engine Engine Ion Engine Power Core Light Nuclear Core Propulsion Aluminum Leg Treads Light Treads Leg Aluminum Leg Wheel Wheel Hover Unit Aerolev Unit Utility Small Storage Unit Device Improved Terrain Scanner Storage Small Storage Unit Processor Improved Terrain Scan Processor Protection Hardened Medium Armor Plating Weapon Light Assault Rifle Energy Gun Medium Laser Ballistic Gun Light Assault Rifle Ballistic Cannon Flak Cannon Launcher Grenade Launcher Impact Weapon Heavy Mace Slashing Weapon Katana Build | -11 -10 -10 -9 -9 -9 -8 -8 -8 ------- Run | Yrd Mat Min Mat Min Exi Min Mat Sto Slots Evolved 4 | . . . 2 . . . 2 . Power 1 | . . . . . . . 1 . Propulsion 1 | . . . . . . . 1 . Utility 2 | . . . 2 . . . . . Weapon . | . . . . . . . . . Parts Attached 45 | 7 2 8 5 4 2 5 4 8 Power 6 | 1 1 1 . 1 . 1 1 . Engine 5 | 1 1 1 . 1 . . 1 . Core 1 | . . . . . . 1 . . Reactor . | . . . . . . . . . Propulsion 14 | 2 1 1 . 2 . . 2 6 Treads 1 | . . . . . . . 1 . Leg 9 | 2 1 1 . . . . 1 4 Wheel 2 | . . . . 2 . . . . Hover 2 | . . . . . . . . 2 Flight . | . . . . . . . . . Utility 9 | 2 . 1 3 . 1 1 . 1 Device 5 | 1 . . 3 . 1 . . . Storage 1 | 1 . . . . . . . . Processor 1 | . . 1 . . . . . . Hackware . | . . . . . . . . . Protection 2 | . . . . . . 1 . 1 Artifact . | . . . . . . . . . Weapon 16 | 2 . 5 2 1 1 3 1 1 Energy Gun 3 | 2 . 1 . . . . . . Energy Cannon . | . . . . . . . . . Ballistic Gun 8 | . . 3 2 . 1 2 . . Ballistic Cannon 1 | . . . . . . 1 . . Launcher 2 | . . 1 . 1 . . . . Special Weapon . | . . . . . . . . . Impact Weapon 1 | . . . . . . . 1 . Slashing Weapon 1 | . . . . . . . . 1 Piercing Weapon . | . . . . . . . . . Special Melee Weapon . | . . . . . . . . . Unidentified Prototypes 1 | . . . . . . . . 1 Parts Lost 21 | . 1 2 1 7 . 2 . 8 Power 5 | . . 1 . 1 . 1 . 2 Propulsion 6 | . . . . 2 . 1 . 3 Utility 6 | . 1 . 1 1 . . . 3 Weapon 4 | . . 1 . 3 . . . . Highest Loss Streak 7 | . 1 2 1 7 . 2 . 5 To Critical Strikes . | . . . . . . . . . Average Slot Usage (%) 90 | . 96 84 94 87 70 94 86 90 Engine 9 | . 14 12 11 9 11 8 1 8 Core 1 | . . . . . . . 9 2 Leg 18 | . 28 28 22 17 . . 7 20 Wheel 4 | . . . . 2 22 19 9 2 Hover 1 | . . . . . . . . 3 Device 11 | . 11 . 16 20 15 14 9 8 Storage 11 | . 14 14 11 11 11 11 9 9 Processor 7 | . . 2 11 11 11 11 9 9 Protection 3 | . . . . . . 7 9 7 Energy Gun 6 | . 28 4 . . . . . . Ballistic Gun 7 | . . 20 22 17 . 14 9 1 Impact Weapon 3 | . . . . . . . 6 9 Slashing Weapon 2 | . . . . . . . . 7 Naked Turns . | . . . . . . . . . Heaviest Build 34 | 12 14 15 17 17 18 28 34 34 Greatest Support 42 | 20 20 20 26 26 20 20 12 42 Greatest Overweight (x) 8 | . . . . 1 . 2 3 8 Average Overweight (x) . | . . . . . . . 2 . Largest Inventory Capacity 8 | 8 8 8 8 8 8 8 8 8 Average Capacity 7 | 7 8 8 8 8 8 8 8 8 Most Carried 8 | 4 8 8 8 8 5 7 8 8 Average Carried 7 | 3 7 7 6 7 4 5 7 7 Final Capacity 8 | 8 8 8 8 8 8 8 8 8 Final Carried 8 | 4 8 8 8 5 4 6 8 8 Class Distribution -------------------- 44% | Mutant 31% | Assassin 16% | Skirmisher 5% | Scavenger-Mutant Dominant Class ---------------- Mutant | -10/Materials Scavenger-Mutant | -10/Mines Mutant | -9/Materials Mutant | -9/Mines Mutant | -9/Exiles Skirmisher | -8/Mines Assassin | -8/Materials Assassin | -8/Storage Resources | -11 -10 -10 -9 -9 -9 -8 -8 -8 ----------- Run | Yrd Mat Min Mat Min Exi Min Mat Sto Matter Collected 800 | 270 31 86 105 32 . 102 57 117 Remotely . | . . . . . . . . . Salvage Created 1083 | 99 297 96 54 63 . 30 57 387 Parts 70 | 8 18 9 3 7 . 2 5 18 Haulers Intercepted 2 | . . . 1 . . . . 1 Recyclers Shooed 1 | 1 . . . . . . . . Parts Field Recycled . | . . . . . . . . . Retrieved Matter . | . . . . . . . . . Parts Self-Destructed . | . . . . . . . . . Prevented . | . . . . . . . . . Kills | -11 -10 -10 -9 -9 -9 -8 -8 -8 ------- Run | Yrd Mat Min Mat Min Exi Min Mat Sto Combat Hostiles Destroyed 27 | . 9 5 . 4 . 2 1 6 Melee 7 | . . . . . . . 1 6 Guns 14 | . 9 1 . 4 . . . . Cannons 2 | . . . . . . 2 . . AOE 4 | . . 4 . . . . . . Classes Destroyed 7 | 3 2 . 1 . . . 1 . Worker 2 | 1 . . . . . . 1 . Tunneler 1 | 1 . . . . . . . . Hauler 2 | . . . 1 . . . . 1 Recycler 1 | 1 . . . . . . . . Swarmer 9 | . 2 3 . 4 . . . . Grunt 14 | . 7 2 . . . 2 . 3 Sentry 4 | . . . . . . . 1 3 Best Kill Streak 5 | 2 2 5 1 4 . 1 1 2 Combat Bots Only 5 | . 2 5 . 4 . 1 1 1 Max Kills in Single Turn 2 | 1 1 2 1 1 . 1 1 1 Gunslinging . | . . . . . . . . . Exploded 2 | . . 2 . . . . . . Melee 1 | . . . . . . . 1 1 Uniques/NPCs Destroyed . | . . . . . . . . . Combat | -11 -10 -10 -9 -9 -9 -8 -8 -8 -------- Run | Yrd Mat Min Mat Min Exi Min Mat Sto Hostile Shots Fired 227 | . 44 20 11 49 . 22 6 75 Missed 61 | . 9 5 5 14 . 4 2 22 Damage Taken 2710 | . 411 193 76 701 . 298 60 971 Core 579 | . 83 65 12 259 . 13 14 133 Absorbed by Shields . | . . . . . . . . . Core Remaining (%) 56 | 100 . 40 . . . 29 . . Volleys Fired 78 | 10 25 9 12 9 . 13 . . Largest 2 | 2 2 2 2 2 . 2 . . Hottest 90 | 90 90 90 40 46 . 64 . . Shots Fired 152 | 20 50 15 24 17 . 26 . . Gun 134 | 20 50 11 24 16 . 13 . . Cannon 13 | . . . . . . 13 . . Launcher 5 | . . 4 . 1 . . . . Special . | . . . . . . . . . Kinetic 66 | . . . 24 16 . 26 . . Thermal 81 | 20 50 11 . . . . . . Explosive 5 | . . 4 . 1 . . . . Electromagnetic . | . . . . . . . . . Robot Hit Streak 11 | 3 11 3 2 3 . 5 . . Robot Miss Streak 5 | 2 3 3 3 3 . 5 . . Penetration Max . | . . . . . . . . . Secondary Targets 4 | . 3 . . 1 . . . . Max Gunslinging Chain 1 | . 1 . . 1 . . . . Shots Hit Robots 140 | 11 34 9 10 10 . 19 4 43 Core Hits 59 | 4 17 7 4 6 . 12 1 8 Critical Kills . | . . . . . . . . . Critical Parts Destroyed 2 | . . . . . . . 1 1 Critical Strikes 6 | . 1 . . . . . 1 4 Burn 1 | . 1 . . . . . . . Smash 2 | . . . . . . . 1 1 Sever 3 | . . . . . . . . 3 Melee Attacks 53 | . . . . . . . 4 49 Impact 12 | . . . . . . . 4 8 Slashing 41 | . . . . . . . . 41 Piercing . | . . . . . . . . . Sneak Attacks 5 | . . . . . . . 1 4 Combat Hostiles 1 | . . . . . . . . 1 Follow-up Attacks 6 | . . . . . . . . 6 Damage Inflicted 3057 | 130 422 335 85 222 . 258 156 1449 Guns 904 | 130 421 62 85 163 . 43 . . Cannons 215 | . . . . . . 215 . . Explosions 321 | . . 273 . 48 . . . . Melee 1605 | . . . . . . . 156 1449 Ramming 12 | . 1 . . 11 . . . . Kinetic 506 | . . . 85 163 . 258 . . Thermal 613 | 130 421 62 . . . . . . Explosive 321 | . . 273 . 48 . . . . Electromagnetic . | . . . . . . . . . Impact 321 | . . . . . . . 156 165 Slashing 1284 | . . . . . . . . 1284 Piercing . | . . . . . . . . . Highest Corruption 2 | . 2 2 . . . . . . Average Corruption 2 | . 2 2 . . . . . . Corruption Purged . | . . . . . . . . . Corruption Blocked . | . . . . . . . . . Effects 4 | . 3 1 . . . . . . Matter Fused 4 | . 3 1 . . . . . . Overload Shots . | . . . . . . . . . Overflow Damage 177 | . . 1 . . . . 60 116 Projectiles . | . . . . . . . . . Explosions 1 | . . 1 . . . . . . Melee 176 | . . . . . . . 60 116 Knockbacks 7 | . . . . . . 5 1 1 Impact 2 | . . . . . . . 1 1 Kinetic 5 | . . . . . . 5 . . Secondary . | . . . . . . . . . Self-Inflicted Damage . | . . . . . . . . . Shots . | . . . . . . . . . Rammed . | . . . . . . . . . Targets Rammed 4 | . 3 . . 1 . . . . Kicked 4 | . 3 . . 1 . . . . Crushed . | . . . . . . . . . Highest Temperature 306 | 136 306 103 3 . . 163 . 9 Average Temperature 88 | 69 108 52 3 . . 90 . 5 Received Heat Transfer 870 | . 204 117 39 60 . 180 18 252 Siege Activations . | . . . . . . . . . Robots Corrupted . | . . . . . . . . . Combat Hostiles . | . . . . . . . . . Parts Fried . | . . . . . . . . . Impact Corruptions 4 | . . . . . . . 3 1 Robots Melted . | . . . . . . . . . Combat Hostiles . | . . . . . . . . . Parts Melted 5 | 1 4 . . . . . . . Heat Transferred 1698 | 347 1178 173 . . . . . . Parts Sabotaged . | . . . . . . . . . Parts Stolen . | . . . . . . . . . Parts Stripped . | . . . . . . . . . Power Chain Reactions . | . . . . . . . . . Alert | -11 -10 -10 -9 -9 -9 -8 -8 -8 ------- Run | Yrd Mat Min Mat Min Exi Min Mat Sto Peak Influence 423 | 15 205 143 70 132 . 45 67 423 Initial 55 | . 9 21 55 27 . . 17 27 Average 93 | 3 57 136 63 83 . 7 46 189 Maximum Alert Level 2 | . 1 . . . . . . 2 Low Security (%) 87 | 100 98 100 100 100 . 100 100 56 Level 1 11 | . 1 . . . . . . 40 Level 2 . | . . . . . . . . 3 Level 3 . | . . . . . . . . . Level 4 . | . . . . . . . . . Level 5 . | . . . . . . . . . High Security . | . . . . . . . . . Max Security . | . . . . . . . . . Squads Dispatched 6 | . 1 1 . . . . 1 3 Investigation 3 | . 1 1 . . . . . 1 Extermination . | . . . . . . . . . Reinforcement 1 | . . . . . . . 1 . Assault 2 | . . . . . . . . 2 Garrison . | . . . . . . . . . Intercept . | . . . . . . . . . Searches Triggered . | . . . . . . . . . Construction Impeded . | . . . . . . . . . Haulers Reinforced . | . . . . . . . . . Active Scanning Responses . | . . . . . . . . . Cargo Convoy Interrupts . | . . . . . . . . . Stealth | -11 -10 -10 -9 -9 -9 -8 -8 -8 --------- Run | Yrd Mat Min Mat Min Exi Min Mat Sto Distress Signals 2 | . 1 . . . . . . 1 Communications Jammed . | . . . . . . . . . Distress Signals . | . . . . . . . . . Times Spotted 84 | . 14 6 6 22 . 4 1 31 Peak Tracking Total 15 | . 5 4 5 15 . 3 2 15 Tactical Retreats 16 | . 2 . . 1 . 1 . 12 Traps | -11 -10 -10 -9 -9 -9 -8 -8 -8 ------- Run | Yrd Mat Min Mat Min Exi Min Mat Sto Traps Triggered 3 | . 2 . . . . . . 1 Indirectly . | . . . . . . . . . Trap Hack Attempts . | . . . . . . . . . Triggered . | . . . . . . . . . Disarmed . | . . . . . . . . . Reprogrammed . | . . . . . . . . . Reused . | . . . . . . . . . Traps Extracted . | . . . . . . . . . Installed . | . . . . . . . . . Triggered . | . . . . . . . . . Machines | -11 -10 -10 -9 -9 -9 -8 -8 -8 ---------- Run | Yrd Mat Min Mat Min Exi Min Mat Sto Machines Disabled 1 | . . . . . . . . 1 Max in Single Turn 1 | . . . . . . . . 1 Garrison Access 1 | . . . . . . . 1 . Machines Repaired . | . . . . . . . . . Machines Dismantled . | . . . . . . . . . Machines Sabotaged . | . . . . . . . . . Overloaded Fab Kills . | . . . . . . . . . Hacking | -11 -10 -10 -9 -9 -9 -8 -8 -8 --------- Run | Yrd Mat Min Mat Min Exi Min Mat Sto Machines Accessed 13 | . 3 1 4 . 2 . 1 2 Terminals 8 | . 3 . 3 . . . . 2 Fabricators . | . . . . . . . . . Repair Stations . | . . . . . . . . . Recycling Units . | . . . . . . . . . Scanalyzers 1 | . . . 1 . . . . . Garrison Access 1 | . . . . . . . 1 . Total Hacks 28 | . 8 1 13 . 2 . 1 3 Successful 20 | . 4 1 10 . 2 . 1 2 Failed 8 | . 4 . 3 . . . . 1 Catastrophic 2 | . . . 1 . . . . 1 Database Lockouts . | . . . . . . . . . Manual 18 | . 6 . 7 . 1 . . 4 Terminals 19 | . 8 . 8 . . . . 3 Fabricators . | . . . . . . . . . Repair Stations . | . . . . . . . . . Recycling Units . | . . . . . . . . . Scanalyzers 5 | . . . 5 . . . . . Garrison Access 1 | . . . . . . . 1 . Terminal Hacks 6 | . 1 1 2 . 2 . . . Record 1 | . . . . . 1 . . . Open Door 1 | . . 1 . . . . . . Branch Access Points 1 | . . . 1 . . . . . Zone Layout 2 | . 1 . 1 . . . . . Derelict Proto ID Bank 1 | . . . . . 1 . . . Fabricator Hacks . | . . . . . . . . . Repair Station Hacks . | . . . . . . . . . Recycling Unit Hacks . | . . . . . . . . . Scanalyzer 5 | . . . 5 . . . . . Insert Component 3 | . . . 3 . . . . . Analyze 2 | . . . 2 . . . . . Garrison Access Hacks 1 | . . . . . . . 1 . Seal Access 1 | . . . . . . . 1 . Unauthorized Hacks 8 | . 3 . 3 . . . . 2 Terminals 8 | . 3 . 3 . . . . 2 Botnet 5 | . 2 . 2 . . . . 1 Operators 3 | . 1 . 1 . . . . 1 Fabricators . | . . . . . . . . . Repair Stations . | . . . . . . . . . Recycling Units . | . . . . . . . . . Scanalyzers . | . . . . . . . . . Garrison Access . | . . . . . . . . . Data Cores Recovered . | . . . . . . . . . Used . | . . . . . . . . . Hacking Detections 9 | . 3 . 4 . . . . 2 Full Trace Events . | . . . . . . . . . Feedback Events . | . . . . . . . . . Feedback Blocked . | . . . . . . . . . Robot Schematics Acquired . | . . . . . . . . . Robots Built . | . . . . . . . . . Authchips . | . . . . . . . . . Time . | . . . . . . . . . Total Robot Build Rating . | . . . . . . . . . Part Schematics Acquired 2 | . . . 2 . . . . . Parts Built . | . . . . . . . . . Authchips . | . . . . . . . . . Time . | . . . . . . . . . Total Part Build Rating . | . . . . . . . . . Parts Repaired . | . . . . . . . . . Time . | . . . . . . . . . Parts Recycled . | . . . . . . . . . Recycled Matter . | . . . . . . . . . Retrieved Matter . | . . . . . . . . . Retrieved Components . | . . . . . . . . . Parts Scanalyzed 2 | . . . 2 . . . . . Part Schematics Acquired 2 | . . . 2 . . . . . Parts Damaged . | . . . . . . . . . Bothacking | -11 -10 -10 -9 -9 -9 -8 -8 -8 ------------ Run | Yrd Mat Min Mat Min Exi Min Mat Sto Used RIF Installer . | . . . . . . . . . Robots Hacked . | . . . . . . . . . Non-combat . | . . . . . . . . . Combat . | . . . . . . . . . Robot Hacks Applied . | . . . . . . . . . Relay Couplers Released . | . . . . . . . . . Fabnet Peak Effective % . | . . . . . . . . . Robots Rewired . | . . . . . . . . . Allies Hacked . | . . . . . . . . . Hacks Repelled . | . . . . . . . . . Allies | -11 -10 -10 -9 -9 -9 -8 -8 -8 -------- Run | Yrd Mat Min Mat Min Exi Min Mat Sto Total Allies 11 | . . . . . . . . 11 Largest Group 11 | . . . . . . . . 11 Highest-Rated Group 206 | . . . . . . . . 206 Highest-Rated Ally 31 | . . . . . . . . 31 Total Orders 1 | . . . . . . . . 1 ROAM 1 | . . . . . . . . 1 Ally Attacks 39 | . . . . . . . . 39 Total Damage 498 | . . . . . . . . 498 Kills 4 | . . . . . . . . 4 Allies Corrupted . | . . . . . . . . . Allies Melted . | . . . . . . . . . Intel | -11 -10 -10 -9 -9 -9 -8 -8 -8 ------- Run | Yrd Mat Min Mat Min Exi Min Mat Sto Robot Analysis Total . | . . . . . . . . . Derelict Logs Recovered 2 | . . 1 . 1 . . . . Drone Launches . | . . . . . . . . . Drone Recoveries . | . . . . . . . . . Exploration | -11 -10 -10 -9 -9 -9 -8 -8 -8 ------------- Run | Yrd Mat Min Mat Min Exi Min Mat Sto Turns Passed 2450 | 109 524 158 297 109 173 157 295 628 Spaces Moved 1652 | 56 342 98 203 71 213 119 210 340 Core 8 | 4 . . . 3 . . . 1 Treads . | . . . . . . . . . Legs 951 | 52 342 98 203 50 . . 22 184 Wheels 592 | . . . . 18 213 119 188 54 Hover 101 | . . . . . . . . 101 Flight . | . . . . . . . . . Fastest Speed 50 | 50 120 120 120 80 80 80 110 110 Average Speed 114 | 115 120 120 120 109 80 89 128 125 Slowest Speed 450 | 120 120 120 120 120 80 110 270 450 Overloaded Moves . | . . . . . . . . . Propulsion Burnouts . | . . . . . . . . . Robots Hopped . | . . . . . . . . . Cave-ins Triggered . | . . . . . . . . . Exploration Rate (%) 32 | 3 72 25 25 20 59 16 18 54 Regions Visited 8 Branch Regions 5 Pre-discovered Areas 3 | . . 1 . 1 1 . . . Known Exits Taken 1 | . . . 1 . . . . . Unknown Exits Taken 7 | 1 1 1 . 1 1 1 1 . Scrap Searched 1 | . . . . . . 1 . . Spaces Dug . | . . . . . . . . . Terrain Destroyed 34 | . . 33 . 1 . . . . Melee . | . . . . . . . . . Projectile . | . . . . . . . . . AOE 34 | . . 33 . 1 . . . . Terrain Rammed . | . . . . . . . . . Walls Destroyed . | . . . . . . . . . Machines Disabled . | . . . . . . . . . Actions | -11 -10 -10 -9 -9 -9 -8 -8 -8 --------- Run | Yrd Mat Min Mat Min Exi Min Mat Sto Total 1991 | 78 405 123 236 84 214 145 227 479 Wait 138 | . 30 . 15 . . 6 5 82 Move 1644 | 55 341 97 202 70 212 118 209 340 Hop . | . . . . . . . . . Pick Up 21 | 6 3 4 1 . . 2 3 2 Fast Attach 20 | 5 . 3 1 1 1 1 4 4 Attach 11 | 2 . 1 2 3 1 2 . . Detach 1 | . . . . . . 1 . . Swap 14 | . 2 4 2 . . 2 . 4 Drop 15 | . 1 5 1 . . . 2 6 Fire 78 | 10 25 9 12 9 . 13 . . Melee 45 | . . . . . . . 4 41 Ram . | . . . . . . . . . Kick 4 | . 3 . . 1 . . . . Crush . | . . . . . . . . . Escape Stasis . | . . . . . . . . . Rewire . | . . . . . . . . . Trap . | . . . . . . . . . Miscellaneous . | . . . . . . . . . Route ------- -11/Scrapyard -10/Materials (discovered 3 exits: *Mat x2 / *Min) -10/Mines -9/Materials (discovered 2 exits: *Min x2) -9/Mines -9/Exiles -8/Mines -8/Materials -8/Storage (discovered 1 exit: [*Fac]) History --------- Turn | Location | Event 26 | -11/Scrapyard | Discovered new exit (range 15) 110 | -11/Scrapyard | Entered Materials 301 | -10/Materials | Build established: Mutant 325 | -10/Materials | Discovered new exit (range 9) 510 | -10/Materials | Discovered new exit (range 6) 616 | -10/Materials | Discovered new exit (range 12) 634 | -10/Materials | Entered Mines 647 | -10/Mines | Core integrity fell below 50% 700 | -10/Mines | Learned location of Zion (-7) 744 | -10/Mines | Discovered new exit (range 14) 763 | -10/Mines | Met a Derelict shopkeep closing up shop 792 | -10/Mines | Entered Materials 792 | -9/Materials | Evolved 2 slots: Utility x2 935 | -9/Materials | Discovered new exit (range 14) 939 | -9/Materials | Identified exit to Mines 1089 | -9/Materials | Entered Mines 1106 | -9/Mines | Learned location of Recycling (-8) 1148 | -9/Mines | Assembled infested the area 1176 | -9/Mines | Core integrity fell below 50% 1195 | -9/Mines | Deemed a non-threat by the Exiles lab entrance 1195 | -9/Mines | Discovered new exit (range 5) 1198 | -9/Mines | Entered Exiles 1208 | -9/Exiles | Lost 7 parts (1p2n1u3w) 1218 | -9/Exiles | Met 8R-AWN 1231 | -9/Exiles | Met EX-HEX 1255 | -9/Exiles | Met EX-BIN 1267 | -9/Exiles | Aligned with FarCom system 1267 | -9/Exiles | Given EX-Vault access code 1287 | -9/Exiles | Opened EX-Vault 1291 | -9/Exiles | Found Cloak of Protection 1309 | -9/Exiles | Warned to stay clear of 0b10 Research branches 1332 | -9/Exiles | Met EX-DEC 1358 | -9/Exiles | Discovered new exit (range 15) 1371 | -9/Exiles | Left Exiles lab with Cloak of Protection 1371 | -9/Exiles | Entered Mines 1464 | -8/Mines | Discovered new exit (range 15) 1528 | -8/Mines | Entered Materials 1528 | -8/Materials | Evolved 2 slots: Power x1, Propulsion x1 1701 | -8/Materials | Discovered new exit (range 14) 1823 | -8/Materials | Entered Storage 1927 | -8/Storage | Build established: Assassin 2351 | -8/Storage | Discovered new exit (range 15) 2361 | -8/Storage | Assisted by bots powering up and referring to "LRC-V3" 2399 | -8/Storage | Met a pair of Derelict thieves 2451 | -8/Storage | Self-destructed Last Messages --------------- 02417_ U-05 Engineer lays Concrete. 02417_ U-05 Engineer builds a Door. 02419_ K-01 Serf collects debris. 02420_ W-25 Informer sends out distress signal. 02423_ K-01 Serf collects debris. 02424_ FK-SA3(g) destroyed. 02424_ K-01 Serf destroyed. 02424_ Trooper 3e destroyed. 02427_ K-01 Serf collects debris. 02443_ Airjet destroyed. 02443_ Component Storage disabled. 02446_ Deuterium Engine destroyed. 02446_ Lgt. Armor Plating destroyed. 02447_ Imp. Terrain Scanner destroyed. 02450_ Repair Station disabled. 02450_ Backup Propulsion I tumbles out of repair station. 02450_ Backup Laser I tumbles out of repair station. 02450_ Aluminum Leg destroyed. Map ----- +----------------------------------------------------+ | | | | | | | | | | | | | | | | | | | | | | | | | ??####?###?###??????#????????????????????????????? | | #??#?## """ #?####??????????????????????????????? | | #?#??## """ #???#??#????#??##???????????????????? | | ####?## """ ##?#?##??######????????#????????????? | | #???# ##?#?#?? ! ??????????????????????? | | ! #?#?# #????#?# ##???#?#???????????????? | | T##?## ###?#?## #???#?#????????????????? | | ##?### %== ####### """ #?#####????????????????? | | /########! %%! # """ ## ####?????????????? | | [%!*[[ # """ " #?#???#???????? | | [%=!=% g # #?????????????? | | =%= l# """ =[ #?????????????? | | +#########+### i # """ =#?????????????? | | ### #####b ## """@ ##?##?????????? | | " ### T#### ## " !#?????????????? | | "" ####" "##### g## " #?????????????? | | """ ###! ### %####T## " ##????????????? | | [[" ### ]]### ###### !%Y= #???#????????? | | [[" ###[[ ] ### ###### ######?#?????????? | | ="" ###[ [ ]### ##### d ##??#??????????? | | ############ ggYgdd #?#?###????????? | | %* ############ #?#???#?#??????? | | #/############## ####???#?#?????? | | # #### ######## ####?#?????????? | | #=#### ###########################???????? | | # #### ###?##############??#######???#???? | | # ##?# ##?#######?##?#############?#?#???? | | # ##########+################## ###????###???? | | ###?##?##????? | | =! Y ######???##??? | | g =%[ #?#??####?#??? | | ### ########################### #####??###?#?? | | ### ########?#?################# ##?#???######?? | | ?## ##########?####### #[ ######?#??#???? | | ###+#?#########?###### #[[ #######?##?##?? | | ? # #???#?###### *#%%[####??######??? | | # """?# ? ?"?"" # !%+!! ########?#?#??? | | # """?# # ?""""" ## """" =# #####?##?##???? | +----------------------------------------------------+ Best States ------------- Heat Dissipation 31 Energy Generation 23 Energy Capacity 335 Matter Stores 300 Matter Capacity 300 Sight Range 16 Robot Scan Range 14 Terrain Scan Range 16 Terrain Scan Density 110 Additional Mass Support 6 Armor Coverage 225 Evasion (%) 55 Recoil Reduction 1 Item Schematics ----------------- Hrd. Medium Armor Plating | -9/Materials | Scanalyzed Airjet | -9/Materials | Scanalyzed Robot Schematics ------------------ None Fabricated ------------ Nothing Alien Tech Used ----------------- None Achievements -------------- None Challenges ------------ None Game ------ Seed DiametricStealthDoomcannon Manual? 0 Play Time 00:20:39 Cumulative 46.3 hours Start 2024.04.25 @ 17:01:26 End 2024.04.25 @ 17:18:03 Sessions 1 Manual Loads 0 Difficulty Rogue Special Mode None Game No. 125 Rogue 123 Adventurer 2 Explorer 0 Win Type - Total 0 Types 0/0/0/0/0/0/0/0/0 Lore% 35 Gallery% 49 Achievement% 34 Wizard Run 0 Options --------- Layout 2 ASCII 0 Keyboard 0 Movement Arrows Keybinds 0 Fullscreen 2 Font 24/Smallcaps Map View 50x44 Zoom Use 0% Tactical HUD 1 Map Filters NONE Filters NONE Steam 1 RUN: 1b5f0ef2-c50a-4671-af99-fdc2be92a68d